fUSD/lending_fUSD_20251108
["ID","MTS","AMOUNT","RATE_DAILY","PERIOD"]
[393388934,1762571443012,-150.12,0.000188,2]
[393388935,1762571443022,-150.12,0.000188,2]
[393388936,1762571443031,-150.12,0.000188,2]
[393388937,1762571443041,-150.12,0.000188,2]
[393388938,1762571443050,-150.12,0.000188,2]
[393388939,1762571443060,-150.12,0.000188,2]
[393388940,1762571443069,-150.12,0.000188,2]
[393388941,1762571443079,-150.12,0.000188,2]
[393388942,1762571443089,-150.12,0.000188,2]
[393388943,1762571443101,-345.0,0.00018822,2]
[393388944,1762571443112,-500.0,0.00018858,2]
[393388945,1762571443122,-337.98940918,0.00018858,2]
[393388946,1762571443132,-419.0,0.00018858,2]
[393388947,1762571443142,-419.0,0.00018858,2]
[393388948,1762571443151,-461.39670964,0.00018858,2]
[393388949,1762571443161,-1000.0,0.0001886,2]
[393388950,1762571443172,-7708.15451818,0.00018878,2]
[393388951,1762571443182,-169.08,0.00018889,2]
[393388952,1762571443191,-169.08,0.00018889,2]
[393388953,1762571443200,-169.08,0.00018889,2]
[393388955,1762571443210,-169.08,0.00018889,2]
[393388957,1762571443220,-169.08,0.00018889,2]
[393388959,1762571443229,-169.08,0.00018889,2]
[393388961,1762571443239,-169.08,0.00018889,2]
[393388963,1762571443249,-169.08,0.00018889,2]
[393388965,1762571443259,-314.22,0.00018889,2]
[393388967,1762571443269,-169.08,0.00018889,2]
[393388969,1762571443279,-169.08,0.00018889,2]
[393388971,1762571443289,-169.08,0.00018889,2]
[393388973,1762571443299,-169.08,0.00018889,2]
[393388975,1762571443309,-169.08,0.00018889,2]
[393388976,1762571443319,-169.08,0.00018889,2]
[393388977,1762571443328,-286.14361988,0.000189,2]
[393388978,1762571443338,-227.08,0.00018925,2]
[393388979,1762571443348,-150.0,0.00018935,2]
[393388980,1762571443358,-218.88,0.00018935,2]
[393388981,1762571443367,-176.94,0.00018935,2]
[393388982,1762571443376,-176.94,0.00018935,2]
[393388983,1762571443385,-179.72,0.00018935,2]
[393388984,1762571443395,-179.47,0.00018935,2]
[393388985,1762571443405,-330.9236167,0.00018973,2]
[393388986,1762571443415,-500.0,0.00018973,2]
[393388987,1762571443426,-427.18736711,0.00018973,2]
[393388988,1762571443435,-501.2123909,0.00018973,2]
[393388989,1762571443445,-500.0,0.00018995,2]
[393388990,1762571443455,-419.0,0.00018995,2]
[393388991,1762571443465,-419.0,0.00018995,2]
[393388992,1762571443475,-151.0,0.00018997,2]
[393388993,1762571443484,-307.85671824,0.00018999,2]
[393388994,1762571443495,-300.0,0.00018999,2]
[393388996,1762571443504,-3415.07823313,0.00019,5]
[393388998,1762571443514,-5120.67650425,0.00019,2]
[393388999,1762571443524,-500.0,0.00019,3]
[393389000,1762571443533,-237063.49028568,0.00019,2]
[393389001,1762571443543,-237063.49028568,0.00019,2]
[393389002,1762571443552,-1393.13124637,0.00019,2]
[393389003,1762571443563,-151.0,0.00019,2]
[393389004,1762571443573,-179.983764,0.00019,2]
[393389005,1762571443582,-151.0,0.00019,2]
[393389006,1762571443592,-249.815884,0.00019,2]
[393389007,1762571443603,-151.0,0.00019,2]
[393389008,1762571443612,-151.0,0.00019,2]
[393389009,1762571443622,-214.284318,0.00019,2]
[393389010,1762571443632,-160.785293,0.00019,2]
[393389011,1762571443641,-151.0,0.00019,2]
[393389012,1762571443651,-151.0,0.00019,2]
[393389013,1762571443660,-151.0,0.00019,2]
[393389014,1762571443670,-151.0,0.00019,2]
[393389015,1762571443679,-151.0,0.00019,2]
[393389016,1762571443689,-151.0,0.00019,2]
[393389017,1762571443699,-151.0,0.00019,2]
[393389018,1762571443709,-151.0,0.00019,2]
[393389019,1762571443718,-151.0,0.00019,2]
[393389020,1762571443728,-158.975496,0.00019,2]
[393389022,1762571443738,-151.0,0.00019,2]
[393389024,1762571443748,-151.0,0.00019,2]
[393389026,1762571443758,-151.0,0.00019,2]
[393389028,1762571443768,-156.702705,0.00019,2]
[393389029,1762571443779,-151.0,0.00019,2]
[393389031,1762571443789,-151.0,0.00019,2]
[393389033,1762571443798,-151.0,0.00019,2]
[393389034,1762571443808,-151.0,0.00019,2]
[393389036,1762571443818,-162.78401,0.00019,2]
[393389037,1762571443828,-151.0,0.00019,2]
[393389038,1762571443838,-151.0,0.00019,2]
[393389039,1762571443848,-151.0,0.00019,2]
[393389040,1762571443858,-151.0,0.00019,2]
[393389041,1762571443868,-151.0,0.00019,2]
[393389043,1762571443878,-664.260969,0.00019,2]
[393389045,1762571443887,-664.260969,0.00019,2]
[393389046,1762571443897,-664.260969,0.00019,2]
[393389047,1762571443906,-664.260969,0.00019,2]
[393389048,1762571443916,-151.0,0.00019,2]
[393389049,1762571443926,-151.0,0.00019,2]
[393389050,1762571443936,-151.0,0.00019,2]
[393389051,1762571443946,-203.1545,0.00019,2]
[393389052,1762571443956,-153.317164,0.00019,2]
[393389053,1762571443966,-151.0,0.00019,2]
[393389054,1762571443976,-151.0,0.00019,2]
[393389055,1762571443986,-151.0,0.00019,2]
[393389056,1762571443998,-151.0,0.00019,2]
[393389057,1762571444008,-208.734785,0.00019,2]
[393389058,1762571444018,-151.0,0.00019,2]
[393389059,1762571444028,-154.362474,0.00019,2]
[393389060,1762571444038,-151.0,0.00019,2]
[393389061,1762571444048,-151.0,0.00019,2]
[393389062,1762571444058,-151.0,0.00019,2]
[393389063,1762571444068,-151.0,0.00019,2]
[393389064,1762571444078,-151.0,0.00019,2]
[393389065,1762571444088,-152.958493,0.00019,2]
[393389066,1762571444102,-151.0,0.00019,2]
[393389067,1762571444113,-252.659064,0.00019,2]
[393389068,1762571444258,-151.0,0.00019,2]
[393389069,1762571444289,-151.0,0.00019,2]
[393389070,1762571444299,-151.0,0.00019,2]
[393389071,1762571444309,-151.0,0.00019,2]
[393389072,1762571444319,-151.0,0.00019,2]
[393389073,1762571444330,-151.0,0.00019,2]
[393389074,1762571444339,-151.0,0.00019,2]
[393389075,1762571444349,-151.0,0.00019,2]
[393389076,1762571444359,-151.0,0.00019,2]
[393389077,1762571444368,-151.0,0.00019,2]
[393389078,1762571444378,-151.0,0.00019,2]
[393389079,1762571444388,-151.0,0.00019,2]
[393389080,1762571444397,-151.0,0.00019,2]
[393389081,1762571444407,-151.0,0.00019,2]
[393389082,1762571444417,-151.0,0.00019,2]
[393389083,1762571444426,-151.0,0.00019,2]
[393389084,1762571444436,-151.0,0.00019,2]
[393389085,1762571444446,-153.660482,0.00019,2]
[393389086,1762571444455,-151.0,0.00019,2]
[393389087,1762571444465,-151.0,0.00019,2]
[393389088,1762571444477,-156.412736,0.00019,2]
[393389089,1762571444487,-151.0,0.00019,2]
[393389090,1762571444497,-783.37768913,0.00019,2]
[393389091,1762571444507,-151.0,0.00019,2]
[393389092,1762571444518,-151.0,0.00019,2]
[393389093,1762571444528,-151.0,0.00019,2]
[393389094,1762571444538,-151.0,0.00019,2]
[393389095,1762571444566,-157.311561,0.00019,2]
[393389096,1762571444577,-151.0,0.00019,2]
[393389097,1762571444588,-151.0,0.00019,2]
[393389098,1762571444599,-223.725322,0.00019,2]
[393389099,1762571444611,-198.740328,0.00019,2]
[393389100,1762571444622,-261.116533,0.00019,2]
[393389101,1762571444633,-151.0,0.00019,2]
[393389102,1762571444644,-151.0,0.00019,2]
[393389103,1762571444655,-667.568738,0.00019,2]
[393389104,1762571444666,-151.0,0.00019,2]
[393389105,1762571444677,-667.568738,0.00019,2]
[393389106,1762571444688,-151.0,0.00019,2]
[393389107,1762571444699,-667.568738,0.00019,2]
[393389108,1762571444710,-151.0,0.00019,2]
[393389109,1762571444721,-667.568738,0.00019,2]
[393389110,1762571444731,-151.0,0.00019,2]
[393389111,1762571444741,-151.0,0.00019,2]
[393389112,1762571444753,-151.0,0.00019,2]
[393389113,1762571444764,-151.0,0.00019,2]
[393389114,1762571444775,-151.0,0.00019,2]
[393389115,1762571444785,-151.0,0.00019,2]
[393389116,1762571444796,-151.0,0.00019,2]
[393389117,1762571444807,-151.0,0.00019,2]
[393389118,1762571444817,-151.0,0.00019,2]
[393389119,1762571444828,-152.969852,0.00019,2]
[393389120,1762571444839,-151.0,0.00019,2]
[393389121,1762571444850,-151.0,0.00019,2]
[393389122,1762571444861,-151.0,0.00019,2]
[393389123,1762571444871,-151.0,0.00019,2]
[393389124,1762571444882,-151.0,0.00019,2]
[393389125,1762571444898,-152.183849,0.00019,2]
[393389126,1762571444910,-151.0,0.00019,2]
[393389127,1762571444921,-176.35275,0.00019,2]
[393389128,1762571444932,-151.0,0.00019,2]
[393389129,1762571444943,-176.35275,0.00019,2]
[393389130,1762571444955,-151.0,0.00019,2]
[393389131,1762571444965,-176.35275,0.00019,2]
[393389132,1762571444976,-151.0,0.00019,2]
[393389133,1762571444987,-176.35275,0.00019,2]
[393389134,1762571444999,-156.240753,0.00019,2]
[393389135,1762571445011,-156.497924,0.00019,2]
[393389136,1762571445022,-151.0,0.00019,2]
[393389137,1762571445033,-268.857923,0.00019,2]
[393389138,1762571445044,-232.934296,0.00019,2]
[393389139,1762571445055,-151.0,0.00019,2]
[393389140,1762571445065,-151.0,0.00019,2]
[393389141,1762571445076,-268.857923,0.00019,2]
[393389142,1762571445087,-232.934296,0.00019,2]
[393389143,1762571445099,-268.857923,0.00019,2]
[393389144,1762571445109,-151.0,0.00019,2]
[393389145,1762571445122,-232.934296,0.00019,2]
[393389146,1762571445133,-268.857923,0.00019,2]
[393389147,1762571445143,-151.0,0.00019,2]
[393389148,1762571445154,-232.934296,0.00019,2]
[393389149,1762571445164,-177.751166,0.00019,2]
[393389150,1762571445177,-151.0,0.00019,2]
[393389151,1762571445188,-151.0,0.00019,2]
[393389152,1762571445199,-151.0,0.00019,2]
[393389153,1762571445209,-151.0,0.00019,2]
[393389154,1762571445220,-152.727318,0.00019,2]
[393389155,1762571445230,-263.731008,0.00019,2]
[393389156,1762571445240,-204.150203,0.00019,2]
[393389157,1762571445260,-151.0,0.00019,2]
[393389158,1762571445270,-263.731008,0.00019,2]
[393389159,1762571445281,-168.741974,0.0001905,2]
[393389160,1762571445291,-178.808162,0.0001905,2]
[393389161,1762571445302,-1039.88886038,0.00019068,2]
[393389162,1762571445313,-685.66,0.00019069,2]
[393389163,1762571445324,-500.0,0.00019132,2]
[393389164,1762571445335,-419.0,0.00019132,2]
[393389165,1762571445347,-419.0,0.00019132,2]
[393389166,1762571445358,-7708.15451818,0.00019133,2]
[393389167,1762571445368,-584.0,0.00019178,2]
[393389168,1762571445379,-151.0,0.00019178,2]
[393389169,1762571445390,-151.0,0.00019178,2]
[393389170,1762571445401,-288.393054,0.00019178,2]
[393389171,1762571445411,-151.0,0.00019178,2]
[393389172,1762571445422,-185.218701,0.00019178,2]
[393389173,1762571445433,-185.218701,0.00019178,2]
[393389174,1762571445443,-185.218701,0.00019178,2]
[393389175,1762571445454,-185.218701,0.00019178,2]
[393389176,1762571445464,-151.0,0.00019178,2]
[393389177,1762571445475,-584.0,0.00019186,2]
[393389178,1762571445486,-166.66,0.00019233,2]
[393389179,1762571445500,-500.0,0.00019269,2]
[393389180,1762571445510,-419.0,0.00019269,2]
[393389181,1762571445522,-419.0,0.00019269,2]
[393389182,1762571445533,-685.66,0.00019343,2]
[393389183,1762571445544,-478.09862864,0.00019349,2]
[393389184,1762571445556,-290.57141901,0.00019359,2]
[393389185,1762571445567,-7708.15451818,0.00019389,2]
[393389186,1762571445577,-156.626826,0.000194,2]
[393389187,1762571445588,-168.741974,0.000194,2]
[393389188,1762571445599,-178.808162,0.000194,2]
[393389189,1762571445610,-500.0,0.00019406,2]
[393389190,1762571445622,-419.0,0.00019406,2]
[393389191,1762571445632,-419.0,0.00019406,2]
[393389192,1762571445643,-300.0,0.00019422,2]
[393389193,1762571445654,-151.0,0.0001943,2]
[393389194,1762571445664,-1000.0,0.00019438,2]
[393389195,1762571445675,-5292.0,0.00019479,2]
[393389196,1762571445685,-503.21639595,0.00019521,2]
[393389197,1762571445696,-500.0,0.00019543,2]
[393389198,1762571445707,-5292.0,0.00019604,2]
[393389199,1762571445718,-685.73319314,0.00019617,2]
[393389200,1762571445729,-7708.15451818,0.00019644,2]
[393389201,1762571445739,-584.0,0.00019663,2]
[393389202,1762571445752,-500.0,0.0001968,2]
[393389203,1762571445763,-5888.0,0.00019691,2]
[393389204,1762571445773,-169.08,0.00019711,2]
[393389205,1762571445785,-171.67,0.00019711,2]
[393389206,1762571445795,-169.08,0.00019711,2]
[393389207,1762571445805,-169.08,0.00019711,2]
[393389208,1762571445816,-169.08,0.00019711,2]
[393389209,1762571445827,-169.08,0.00019711,2]
[393389210,1762571445837,-169.08,0.00019711,2]
[393389211,1762571445848,-169.08,0.00019711,2]
[393389212,1762571445858,-169.08,0.00019711,2]
[393389213,1762571445886,-169.08,0.00019711,2]
[393389214,1762571445905,-151.0,0.0001973,7]
[393389215,1762571445920,-151.0,0.0001973,7]
[393389216,1762571445933,-151.0,0.0001973,7]
[393389217,1762571445950,-151.0,0.0001973,7]
[393389218,1762571445966,-151.0,0.0001973,7]
[393389219,1762571445982,-183.48,0.00019737,2]
[393389220,1762571446000,-500.0,0.00019817,2]
[393389221,1762571446017,-227.08,0.00019871,2]
[393389222,1762571446031,-7708.15451818,0.000199,2]
[393389223,1762571446045,-584.0,0.00019929,2]
[393389224,1762571446062,-168.741974,0.0001995,15]
[393389225,1762571446077,-178.808162,0.0001995,15]
[393389226,1762571446095,-500.0,0.00019954,2]
[393389227,1762571446110,-151.0,0.00019967,7]
[393389228,1762571446125,-151.0,0.00019967,7]
[393389229,1762571446141,-168.116196,0.00019967,7]
[393389230,1762571446157,-151.0,0.00019967,7]
[393389231,1762571446172,-151.0,0.00019967,7]
[393389232,1762571446185,-151.0,0.00019967,7]
[393389233,1762571446201,-151.0,0.00019967,7]
[393389234,1762571446216,-151.0,0.00019967,7]
[393389235,1762571446231,-156.447266,0.00019967,7]
[393389236,1762571446247,-162.562838,0.00019967,7]
[393389237,1762571446261,-151.0,0.00019967,7]
[393389238,1762571446276,-160.725061,0.00019967,7]
[393389239,1762571446292,-151.0,0.00019967,7]
[393389240,1762571446313,-151.0,0.00019967,7]
[393389241,1762571446331,-151.0,0.00019967,7]
[393389242,1762571446348,-151.0,0.00019967,7]
[393389243,1762571446362,-151.0,0.00019967,7]
[393389244,1762571446373,-151.0,0.00019967,7]
[393389245,1762571446387,-151.0,0.00019967,7]
[393389246,1762571446399,-151.0,0.00019967,7]
[393389247,1762571446415,-151.0,0.00019967,7]
[393389248,1762571446429,-151.0,0.00019967,7]
[393389249,1762571446441,-151.0,0.00019967,7]
[393389250,1762571446453,-664.260969,0.00019967,7]
[393389251,1762571446465,-664.260969,0.00019967,7]
[393389252,1762571446479,-664.260969,0.00019967,7]
[393389253,1762571446497,-664.260969,0.00019967,7]
[393389254,1762571446512,-66546.86606643,0.0002,5]
[393389255,1762571446525,-2000.0,0.0002,5]
[393389256,1762571446536,-150.0,0.0002,2]
[393389257,1762571446547,-157.97,0.0002,3]
[393389258,1762571446560,-168.741974,0.0002,5]
[393389259,1762571446572,-178.808162,0.0002,5]
[393389260,1762571446585,-478.09862864,0.0002,7]
[393389261,1762571446597,-151.0,0.0002,7]
[393389262,1762571446611,-151.0,0.0002,7]
[393389263,1762571446624,-151.0,0.0002,7]
[393389264,1762571446637,-151.0,0.0002,7]
[393389265,1762571446651,-156.251921,0.0002,7]
[393389266,1762571446664,-185.218701,0.0002,7]
[393389267,1762571446680,-185.218701,0.0002,7]
[393389268,1762571446694,-185.218701,0.0002,7]
[393389269,1762571446708,-185.218701,0.0002,7]
[393389270,1762571446722,-151.0,0.0002,7]
[393389271,1762571446735,-151.0,0.0002,7]
[393389272,1762571446749,-151.0,0.0002,7]
[393389273,1762571446762,-153.000369,0.0002,7]
[393389274,1762571446775,-151.0,0.0002,7]
[393389275,1762571446788,-151.0,0.0002,7]
[393389276,1762571446801,-151.0,0.0002,7]
[393389277,1762571446819,-250.001272,0.0002,7]
[393389278,1762571446832,-204.774149,0.0002,7]
[393389279,1762571446845,-151.0,0.0002,7]
[393389280,1762571446859,-151.0,0.0002,7]
[393389281,1762571446871,-151.0,0.0002,7]
[393389282,1762571446883,-151.0,0.0002,7]
[393389283,1762571446896,-151.0,0.0002,7]
[393389284,1762571446908,-151.0,0.0002,7]
[393389285,1762571446921,-226.807711,0.0002,7]
[393389286,1762571446933,-151.0,0.0002,7]
[393389287,1762571446946,-184.12,0.0002,2]
[393389288,1762571446958,-151.0,0.0002,7]
[393389289,1762571446972,-151.0,0.0002,7]
[393389290,1762571446984,-151.0,0.0002,7]
[393389291,1762571446998,-178.315269,0.0002,7]
[393389292,1762571447011,-151.0,0.0002,7]
[393389293,1762571447024,-151.0,0.0002,7]
[393389294,1762571447036,-155.747306,0.0002,7]
[393389295,1762571447048,-217.428652,0.0002,7]
[393389298,1762571447061,-154.349848,0.0002,7]
[393389300,1762571447074,-151.0,0.0002,7]
[393389301,1762571447086,-151.0,0.0002,7]
[393389302,1762571447102,-667.568738,0.0002,7]
[393389303,1762571447115,-151.0,0.0002,7]
[393389304,1762571447127,-667.568738,0.0002,7]
[393389305,1762571447140,-151.0,0.0002,7]
[393389307,1762571447152,-667.568738,0.0002,7]
[393389309,1762571447165,-151.0,0.0002,7]
[393389311,1762571447178,-667.568738,0.0002,7]
[393389312,1762571447190,-151.0,0.0002,7]
[393389313,1762571447203,-151.0,0.0002,7]
[393389314,1762571447215,-200.558866,0.0002,2]
[393389315,1762571447228,-151.0,0.0002,7]
[393389316,1762571447240,-151.0,0.0002,7]
[393389317,1762571447253,-151.0,0.0002,7]
[393389318,1762571447266,-151.0,0.0002,7]
[393389319,1762571447279,-151.0,0.0002,7]
[393389320,1762571447290,-151.0,0.0002,7]
[393389321,1762571447303,-151.0,0.0002,7]
[393389322,1762571447316,-151.0,0.0002,7]
[393389323,1762571447328,-151.0,0.0002,7]
[393389324,1762571447342,-151.0,0.0002,7]
[393389325,1762571447354,-1000.0,0.0002,7]
[393389326,1762571447367,-151.0,0.0002,7]
[393389327,1762571447379,-151.0,0.0002,7]
[393389328,1762571447391,-151.0,0.0002,7]
[393389329,1762571447405,-176.35275,0.0002,7]
[393389330,1762571447418,-151.0,0.0002,7]
[393389331,1762571447431,-176.35275,0.0002,7]
[393389332,1762571447444,-264.962816,0.0002,7]
[393389333,1762571447457,-176.35275,0.0002,7]
[393389334,1762571447471,-843.65063,0.0002,2]
[393389335,1762571447484,-176.35275,0.0002,7]
[393389336,1762571447497,-151.0,0.0002,7]
[393389337,1762571447511,-268.857923,0.0002,7]
[393389338,1762571447523,-232.934296,0.0002,7]
[393389339,1762571447536,-295.228275,0.0002,7]
[393389340,1762571447548,-151.0,0.0002,7]
[393389341,1762571447562,-268.857923,0.0002,7]
[393389342,1762571447574,-232.934296,0.0002,7]
[393389343,1762571447588,-268.857923,0.0002,7]
[393389344,1762571447602,-151.0,0.0002,7]
[393389345,1762571447615,-232.934296,0.0002,7]
[393389346,1762571447626,-268.857923,0.0002,7]
[393389347,1762571447636,-151.0,0.0002,7]
[393389348,1762571447646,-232.934296,0.0002,7]
[393389349,1762571447657,-151.0,0.0002,7]
[393389350,1762571447667,-151.0,0.0002,7]
[393389351,1762571447678,-151.0,0.0002,7]
[393389352,1762571447688,-151.0,0.0002,7]
[393389353,1762571447698,-263.731008,0.0002,7]
[393389354,1762571447709,-151.0,0.0002,7]
[393389355,1762571447719,-263.731008,0.0002,7]
[393389356,1762571447730,-166.67,0.00020004,2]
[393389357,1762571448018,-9007.98855927,0.0002001,2]
[393389358,1762571448046,-587.0,0.00020021,2]
[393389359,1762571448059,-434.69191353,0.00020091,2]
[393389360,1762571448069,-362.63468133,0.00020092,2]
[393389361,1762571448079,-230.92,0.00020103,2]
[393389362,1762571448090,-1000.0,0.00020116,2]
[393389363,1762571448100,-1312.4619096,0.00020147,2]
[393389364,1762571448110,-166.66,0.00020187,2]
[393389365,1762571448119,-359.04,0.00020187,2]
[393389366,1762571448130,-584.0,0.00020193,2]
[393389367,1762571448141,-2351.0,0.00020194,2]
[393389368,1762571448150,-584.0,0.00020297,2]
[393389369,1762571448159,-584.0,0.00020306,2]
[393389370,1762571448171,-584.0,0.00020483,2]
[393389371,1762571448181,-2000.0,0.000205,2]
[393389372,1762571448191,-584.0,0.00020517,2]
[393389373,1762571448200,-549.24,0.0002054,2]
[393389374,1762571448210,-549.24,0.0002054,2]
[393389375,1762571448219,-549.24,0.0002054,2]
[393389376,1762571448230,-549.24,0.0002054,2]
[393389377,1762571448240,-21311.58,0.00020548,2]
[393389378,1762571448249,-151.0,0.00020548,7]
[393389379,1762571448259,-151.0,0.00020548,7]
[393389380,1762571448269,-151.0,0.00020548,7]
[393389381,1762571448279,-151.0,0.00020548,7]
[393389382,1762571448288,-234.396915,0.00020548,7]
[393389383,1762571448298,-150.0,0.00020572,5]
[393389384,1762571448308,-2033.636684,0.00020585,7]
[393389385,1762571448318,-150.0,0.00020585,5]
[393389386,1762571448327,-584.0,0.00020644,2]
[393389387,1762571448337,-292.849836,0.00020652,2]
[393389388,1762571448347,-163.93,0.00020685,2]
[393389389,1762571448357,-22454.38486222,0.000207,2]
[393389390,1762571448367,-1000.0,0.00020795,2]
[393389391,1762571448377,-227.08,0.00020818,2]
[393389392,1762571448387,-2242.23636251,0.000209,30]
[393389393,1762571448397,-14463.86371992,0.000209,2]
[393389394,1762571448407,-1000.0,0.00020956,2]
[393389395,1762571448416,-150.0,0.00020959,2]
[393389396,1762571448426,-1182.05722643,0.00021,2]
[393389397,1762571448435,-195.11524369,0.00021,2]
[393389398,1762571448445,-500.0,0.00021,2]
[393389399,1762571448454,-20000.0,0.00021,2]
[393389400,1762571448463,-889.47568964,0.00021,2]
[393389401,1762571448473,-12397.04,0.00021068,2]
[393389402,1762571448482,-574.0,0.0002121,2]
[393389403,1762571448492,-1316.0,0.0002121,2]
[393389404,1762571448502,-607.0,0.0002121,2]
[393389405,1762571448512,-3424.0,0.0002121,2]
[393389406,1762571448522,-820.0,0.0002121,2]
[393389407,1762571448532,-1596.0,0.0002121,2]
[393389408,1762571448542,-1273.0,0.0002121,2]
[393389409,1762571448552,-812.0,0.0002121,2]
[393389410,1762571448562,-1188.0,0.0002121,2]
[393389411,1762571448572,-6477.0,0.0002121,2]
[393389412,1762571448582,-2142.0,0.0002121,2]
[393389413,1762571448592,-6660.0,0.0002121,2]
[393389414,1762571448601,-559.0,0.0002121,2]
[393389415,1762571448611,-6315.42,0.0002137,2]
[393389416,1762571448621,-231.06709378,0.000214,2]
[393389417,1762571448631,-500.41383408,0.00021473,2]
[393389418,1762571448641,-500.48756582,0.00021473,2]
[393389419,1762571448650,-155.25322022,0.00021473,2]
[393389420,1762571448660,-501.04587818,0.00021473,2]
[393389421,1762571448670,-500.0,0.00021473,2]
[393389422,1762571448679,-500.39414892,0.00021473,2]
[393389423,1762571448690,-500.0,0.00021473,2]
[393389424,1762571448700,-57433.0218314,0.000215,2]
[393389425,1762571448710,-220.0416091,0.000215,2]
[393389426,1762571448720,-151.0,0.000215,7]
[393389427,1762571448730,-151.0,0.000215,7]
[393389428,1762571448740,-151.0,0.000215,7]
[393389429,1762571448750,-230.92,0.00021502,2]
[393389430,1762571448760,-250.0,0.00021507,2]
[393389431,1762571448771,-168.741974,0.0002175,5]
[393389432,1762571448782,-178.808162,0.0002175,5]
[393389433,1762571448792,-227.08,0.00021764,2]
[393389434,1762571448802,-823.0,0.00021872,2]
[393389435,1762571448811,-5000.0,0.00021918,2]
[393389436,1762571448822,-500.0,0.00021918,2]
[393389437,1762571448833,-150.0,0.00021918,2]
[393389438,1762571448843,-4144.06934902,0.00022,2]
[393389439,1762571448854,-117767.25402134,0.00022,4]
[393389440,1762571448863,-4107.82408963,0.00022,2]
[393389441,1762571448873,-788.15321484,0.00022,7]
[393389442,1762571448883,-160.97,0.00022,2]
[393389443,1762571448892,-42789.71,0.00022,7]
[393389444,1762571448902,-478.09862864,0.00022,7]
[393389445,1762571448913,-151.0,0.00022,7]
[393389446,1762571448922,-151.0,0.00022,7]
[393389447,1762571448932,-151.0,0.00022,7]
[393389448,1762571448942,-151.0,0.00022,7]
[393389449,1762571448952,-257.799912,0.00022,7]
[393389450,1762571448961,-151.0,0.00022,7]
[393389451,1762571448971,-295.47198692,0.00022,7]
[393389452,1762571448980,-151.0,0.00022,7]
[393389453,1762571448990,-176.632126,0.00022,7]
[393389454,1762571448999,-151.0,0.00022,7]
[393389455,1762571449009,-151.0,0.00022,7]
[393389456,1762571449019,-151.0,0.00022,7]
[393389457,1762571449028,-151.0,0.00022,7]
[393389458,1762571449037,-151.0,0.00022,7]
[393389459,1762571449047,-151.0,0.00022,7]
[393389460,1762571449056,-151.0,0.00022,7]
[393389461,1762571449066,-151.0,0.00022,7]